bitfinex/quotes_BTCUSD_20250602
["timestamp","ask_amount","ask_price","bid_price","bid_amount"]
[1748825605259,0.14908023,105490.0,105480.0,0.27421525]
[1748825605485,0.01080427,105490.0,105480.0,0.27421525]
[1748825605713,0.00114561,105490.0,105480.0,0.37371777]
[1748825606660,0.00114561,105490.0,105480.0,0.37371196]
[1748825607353,0.00114561,105490.0,105480.0,0.37371197]
[1748825607804,0.00114561,105490.0,105480.0,0.3648329]
[1748825608055,0.00114561,105490.0,105480.0,0.37370676]
[1748825609202,0.00114561,105490.0,105480.0,0.37370492]
[1748825610126,0.00114561,105490.0,105480.0,0.37370365]
[1748825611500,0.00114561,105490.0,105480.0,0.37005732]
[1748825611894,0.01062437,105490.0,105480.0,0.37005732]
[1748825612551,0.01062437,105490.0,105480.0,0.37005653]
[1748825612772,0.00114561,105490.0,105480.0,0.37005653]
[1748825612968,0.01062437,105490.0,105480.0,0.37005653]
[1748825613117,0.00114561,105490.0,105480.0,0.37005653]
[1748825613317,0.01062437,105490.0,105480.0,0.3611845]
[1748825613530,0.00114561,105490.0,105480.0,0.37005625]
[1748825613866,0.00114561,105490.0,105480.0,0.37005592]
[1748825614393,0.01062437,105490.0,105480.0,0.37005592]
[1748825614608,0.01062437,105490.0,105480.0,0.37005569]
[1748825614808,0.01062437,105490.0,105480.0,0.37005545]
[1748825615492,0.01062437,105490.0,105480.0,0.37005532]
[1748825616407,0.00114561,105490.0,105480.0,0.37005532]
[1748825618060,0.00114561,105490.0,105480.0,0.37005503]
[1748825618430,0.00114561,105490.0,105480.0,0.3611845]
[1748825618630,0.00114561,105490.0,105480.0,0.37005502]
[1748825618868,0.00114561,105490.0,105480.0,0.37005503]
[1748825619073,0.00114561,105490.0,105480.0,0.3611845]
[1748825619249,0.00114561,105490.0,105480.0,0.6895794]
[1748825619448,0.00114561,105490.0,105480.0,0.37369841]
[1748825619688,0.00114561,105490.0,105480.0,0.37369837]
[1748825619888,0.00114561,105490.0,105480.0,0.37369838]
[1748825620058,0.00114561,105490.0,105480.0,0.36482809]
[1748825620266,0.00114561,105490.0,105480.0,0.37369838]
[1748825620483,0.00114561,105490.0,105480.0,0.36482809]
[1748825620712,0.00114561,105490.0,105480.0,0.37369838]
[1748825622497,0.00114561,105490.0,105480.0,0.37369783]
[1748825623110,0.00114561,105490.0,105480.0,0.37369596]
[1748825623736,0.00114561,105490.0,105480.0,0.37369599]
[1748825624735,0.00114561,105490.0,105480.0,0.36482625]
[1748825624942,0.00114561,105490.0,105480.0,0.37369625]
[1748825625409,0.00114561,105490.0,105480.0,0.37369622]
[1748825625623,0.00114561,105490.0,105480.0,0.68994593]
[1748825626263,0.00114561,105490.0,105480.0,0.68107535]
[1748825626865,0.00114561,105490.0,105480.0,0.6899464]
[1748825627449,0.00114561,105490.0,105480.0,0.6899461]
[1748825627621,0.00114561,105490.0,105480.0,0.68107535]
[1748825627803,0.00114561,105490.0,105480.0,0.68994612]
[1748825628010,0.00114561,105490.0,105480.0,0.68107535]
[1748825628212,0.00114561,105490.0,105480.0,0.68994718]
[1748825629071,0.00114561,105490.0,105480.0,0.68994694]
[1748825629520,0.00114561,105490.0,105480.0,0.68994685]
[1748825629730,0.00114561,105490.0,105480.0,0.68994772]
[1748825630491,0.00114561,105490.0,105480.0,0.68994911]
[1748825631199,0.00114561,105490.0,105480.0,0.68107535]
[1748825631404,0.00114561,105490.0,105480.0,0.68994865]
[1748825632110,0.00114561,105490.0,105480.0,0.68994866]
[1748825632713,0.00114561,105490.0,105480.0,0.6899509]
[1748825634084,0.00114561,105490.0,105480.0,0.68995054]
[1748825634302,0.00114561,105490.0,105480.0,0.68107535]
[1748825634479,0.00114561,105490.0,105480.0,0.68995053]
[1748825634834,0.00114561,105490.0,105480.0,0.68107535]
[1748825635290,0.00114561,105490.0,105480.0,0.68995027]
[1748825636423,0.00114561,105490.0,105480.0,0.68995024]
[1748825636725,0.00114561,105490.0,105480.0,0.68107535]
[1748825636879,0.00114561,105490.0,105480.0,0.68995007]
[1748825637246,0.00114561,105490.0,105480.0,0.98303007]
[1748825637455,0.00114561,105490.0,105480.0,0.98303008]
[1748825637656,0.00114561,105490.0,105480.0,0.97415535]
[1748825637857,0.00114561,105490.0,105480.0,0.98303009]
[1748825638788,0.00114561,105490.0,105480.0,0.9830325]
[1748825639000,0.00114561,105490.0,105480.0,0.98303244]
[1748825639417,0.00114561,105490.0,105480.0,0.98303243]
[1748825639540,0.00114561,105490.0,105480.0,0.98303251]
[1748825639743,0.00114561,105490.0,105480.0,0.98303248]
[1748825640757,0.00114561,105490.0,105480.0,0.97415776]
[1748825640962,0.00114561,105490.0,105480.0,0.9830325]
[1748825641320,0.00114561,105490.0,105480.0,0.98303282]
[1748825641919,0.00114561,105490.0,105480.0,0.9741579]
[1748825642133,0.00114561,105490.0,105480.0,0.98303282]
[1748825642338,0.00114561,105490.0,105480.0,0.68995282]
[1748825642509,0.00114561,105490.0,105480.0,0.98299303]
[1748825643465,0.00114561,105490.0,105480.0,0.6667439]
[1748825643668,0.00114561,105490.0,105480.0,0.3737039]
[1748825643912,0.00114561,105490.0,105480.0,0.3419039]
[1748825643913,0.02712446,105490.0,105480.0,0.3419039]
[1748825644105,0.02712446,105490.0,105480.0,0.34190476]
[1748825644287,0.04312446,105490.0,105480.0,0.34190476]
[1748825644982,0.04312446,105490.0,105480.0,0.34190532]
[1748825645429,0.04312437,105490.0,105480.0,0.34190532]
[1748825645651,0.05260331,105490.0,105480.0,0.34190615]
[1748825645856,0.04312437,105490.0,105480.0,0.34190615]
[1748825645971,0.03364561,105490.0,105480.0,0.34190669]
[1748825646374,0.03364561,105490.0,105480.0,0.34190722]
[1748825646990,0.03364561,105490.0,105480.0,0.34190701]
[1748825647392,0.04312455,105490.0,105480.0,0.34190701]
[1748825647600,0.03364561,105490.0,105480.0,0.3330296]
[1748825647801,0.03364561,105490.0,105480.0,0.33826262]
[1748825648337,0.03364561,105490.0,105480.0,0.33826264]
[1748825648937,0.03364561,105490.0,105480.0,0.33826265]
[1748825649155,0.04312446,105490.0,105480.0,0.33826265]
[1748825649365,0.03364561,105490.0,105480.0,0.33826267]
[1748825649604,0.04312437,105490.0,105480.0,0.33826267]
[1748825650028,0.04312437,105490.0,105480.0,0.33826228]
[1748825650222,0.05260322,105490.0,105480.0,0.33826228]
[1748825650486,0.05260322,105490.0,105480.0,0.33826224]
[1748825650923,0.05260322,105490.0,105480.0,0.3293845]
[1748825651286,0.04312437,105490.0,105480.0,0.3293845]
[1748825651917,0.03364561,105490.0,105480.0,0.3293845]
[1748825652075,0.03364561,105490.0,105480.0,0.33826184]
[1748825652276,0.03364561,105490.0,105480.0,0.33826186]
[1748825652660,0.03364561,105490.0,105480.0,0.33826118]
[1748825652661,0.04312446,105490.0,105480.0,0.33826118]
[1748825652778,0.03364561,105490.0,105480.0,0.33826118]
[1748825652977,0.03364561,105490.0,105480.0,0.3293845]
[1748825653178,0.03364561,105490.0,105480.0,0.33826113]
[1748825654030,0.03364561,105490.0,105480.0,0.33826057]
[1748825655836,0.03364561,105490.0,105480.0,0.3293845]
[1748825656036,0.03364561,105490.0,105480.0,0.33825974]
[1748825656245,0.03364561,105490.0,105480.0,0.3293845]
[1748825656447,0.04312455,105490.0,105480.0,0.33825975]
[1748825656777,0.03364561,105490.0,105480.0,0.33825975]
[1748825656968,0.03364561,105490.0,105480.0,0.33825972]
[1748825657404,0.03364561,105490.0,105480.0,0.33825925]
[1748825657634,0.03364561,105490.0,105480.0,0.3293845]
[1748825657838,0.03364561,105490.0,105480.0,0.33825927]
[1748825658267,0.03364561,105490.0,105480.0,0.33825925]
[1748825658475,0.01764561,105490.0,105480.0,0.33825902]
[1748825658676,0.01764561,105490.0,105480.0,0.3293845]
[1748825658892,0.01764561,105490.0,105480.0,0.338259]
[1748825660403,0.00114561,105490.0,105480.0,0.338259]
[1748825660916,0.00114561,105490.0,105480.0,0.33825869]
[1748825661233,0.00114561,105490.0,105480.0,0.3293845]
[1748825661443,0.00114561,105490.0,105480.0,0.33825868]
[1748825662106,0.00114561,105490.0,105480.0,0.33825875]
[1748825662526,0.00114561,105490.0,105480.0,0.33825885]
[1748825663092,0.00114561,105490.0,105480.0,0.3293845]
[1748825663323,0.00114561,105490.0,105480.0,0.33825891]
[1748825663726,0.00114561,105490.0,105480.0,0.68560804]
[1748825664013,0.00114561,105490.0,105480.0,0.68925221]
[1748825664229,0.00114561,105490.0,105480.0,0.68925205]
[1748825664741,0.00114561,105490.0,105480.0,0.68925201]
[1748825664918,0.00114561,105490.0,105480.0,0.68925234]
[1748825665142,0.00114561,105490.0,105480.0,0.68037773]
[1748825665269,0.00114561,105490.0,105480.0,0.68925251]
[1748825665908,0.00114561,105490.0,105480.0,0.37300338]
[1748825666102,0.00114561,105490.0,105480.0,0.37300355]
[1748825666303,0.00114561,105490.0,105480.0,0.3641286]
[1748825666478,0.00114561,105490.0,105480.0,0.37300353]
[1748825666686,0.00114561,105490.0,105480.0,0.37300387]
[1748825667757,0.00114561,105490.0,105480.0,0.3641286]
[1748825667983,0.00114561,105490.0,105480.0,0.37300413]
[1748825668685,0.00114561,105490.0,105480.0,0.37300457]
[1748825670231,0.00114561,105490.0,105480.0,0.37300507]
[1748825671569,0.00114561,105490.0,105480.0,0.37300562]
[1748825672222,0.00114561,105490.0,105480.0,0.3693615]
[1748825672428,0.00114561,105490.0,105480.0,0.37300652]
[1748825673461,0.00114561,105490.0,105480.0,0.35690652]
[1748825674089,0.00114561,105490.0,105480.0,0.34802952]
[1748825674305,0.00114561,105490.0,105480.0,0.35690787]
[1748825674768,0.00114561,105490.0,105480.0,0.35690771]
[1748825674943,0.00114561,105490.0,105480.0,0.34190771]
[1748825675087,0.00114561,105490.0,105480.0,0.34190781]
[1748825675289,0.00114561,105490.0,105480.0,0.63478798]
[1748825675492,0.01724561,105490.0,105480.0,0.63478797]
[1748825675889,0.00114561,105490.0,105480.0,0.634788]
[1748825676091,0.00114561,105490.0,105480.0,0.63478804]
[1748825676421,0.04252455,105490.0,105480.0,0.33826302]
[1748825677008,0.03304561,105490.0,105480.0,0.33826302]
[1748825677193,0.04252455,105490.0,105480.0,0.3293845]
[1748825677399,0.04252455,105490.0,105480.0,0.33826308]
[1748825677847,0.04252437,105490.0,105480.0,0.33826308]
[1748825678200,0.04252437,105490.0,105480.0,0.33826312]
[1748825679107,0.05200331,105490.0,105480.0,0.33826312]
[1748825679332,0.05200331,105490.0,105480.0,0.3293845]
[1748825679533,0.05200322,105490.0,105480.0,0.33826304]
[1748825679967,0.05200322,105490.0,105480.0,0.33826296]
[1748825680169,0.05200331,105490.0,105480.0,0.33826299]
[1748825680367,0.05200331,105490.0,105480.0,0.3293845]
[1748825680608,0.06148234,105490.0,105480.0,0.33826298]
[1748825680810,0.05200331,105490.0,105480.0,0.33826298]
[1748825681227,0.04252437,105490.0,105480.0,0.33826298]
[1748825681404,0.05200331,105490.0,105480.0,0.33826298]
[1748825681610,0.04252437,105490.0,105480.0,0.33826298]
[1748825681832,0.04252437,105490.0,105480.0,0.3293845]
[1748825681983,0.04252437,105490.0,105480.0,0.338263]
[1748825682225,0.05200331,105490.0,105480.0,0.338263]
[1748825682460,0.04252437,105490.0,105480.0,0.338263]
[1748825682635,0.0520034,105490.0,105480.0,0.3293845]
[1748825682868,0.04252437,105490.0,105480.0,0.33826308]
[1748825683083,0.06148234,105490.0,105480.0,0.33826308]
[1748825683292,0.07096146,105490.0,105480.0,0.3382631]
[1748825683497,0.06148216,105490.0,105480.0,0.2424088]
[1748825683909,0.07096128,105490.0,105480.0,0.24240885]
[1748825684084,0.08044067,105490.0,105480.0,0.24240885]
[1748825684293,0.07096128,105490.0,105480.0,0.24240885]
[1748825685238,0.07096128,105490.0,105480.0,0.24240896]
[1748825685632,0.07096128,105490.0,105480.0,0.2335302]
[1748825685874,0.33215573,105490.0,105480.0,0.20448816]
[1748825686164,0.33215573,105490.0,105480.0,0.23292876]
[1748825686165,0.15204378,105490.0,105480.0,0.23292876]
[1748825686367,0.15204378,105490.0,105480.0,0.23292894]
[1748825686576,0.34163521,105490.0,105480.0,0.23292894]
[1748825686779,0.34163521,105490.0,105480.0,0.23292623]
[1748825686987,0.34163521,105490.0,105480.0,0.24240622]
[1748825687197,0.35111478,105490.0,105480.0,0.24240622]
[1748825687403,0.16152335,105490.0,105480.0,0.25188615]
[1748825687611,0.16152335,105490.0,105480.0,0.25188603]
[1748825687822,0.1425643,105490.0,105480.0,0.2518854]
[1748825688029,0.15204315,105490.0,105480.0,0.24240556]
[1748825688233,0.17100148,105490.0,105480.0,0.23292391]
[1748825688997,0.17100148,105490.0,105480.0,0.22404973]
[1748825689209,0.35111415,105490.0,105480.0,0.23292307]
[1748825689579,0.34163512,105490.0,105480.0,0.22344214]
[1748825689779,0.15204369,105490.0,105480.0,0.23292216]
[1748825689988,0.15204369,105490.0,105480.0,0.24240209]
[1748825690189,0.15204369,105490.0,105480.0,0.22344214]
[1748825690496,0.15204369,105490.0,105480.0,0.23292297]
[1748825690497,0.34163512,105490.0,105480.0,0.23292297]
[1748825690703,0.34163512,105490.0,105480.0,0.24240299]
[1748825690904,0.34163512,105490.0,105480.0,0.24240245]
[1748825691105,0.15204369,105490.0,105480.0,0.24240245]
[1748825691287,0.34163512,105490.0,105480.0,0.23292215]
[1748825691998,0.34163512,105490.0,105480.0,0.2424019]
[1748825692206,0.34163512,105490.0,105480.0,0.25188201]
[1748825692439,0.34163512,105490.0,105480.0,0.22344141]
[1748825692645,0.34163512,105490.0,105480.0,0.22405054]
[1748825693060,0.34163512,105490.0,105480.0,0.2424019]
[1748825693642,0.34669685,105490.0,105480.0,0.23292161]
[1748825693904,0.34669685,105490.0,105480.0,0.2329204]
[1748825694294,0.34669685,105490.0,105480.0,0.24240051]
[1748825694525,0.34669685,105490.0,105480.0,0.21395973]
[1748825694746,0.34669685,105490.0,105480.0,0.22344002]
[1748825695442,0.33721746,105490.0,105480.0,0.01486995]
[1748825695646,0.33721746,105490.0,105480.0,0.20447894]
[1748825695843,0.33721746,105490.0,105480.0,0.22343968]
[1748825696455,0.33721746,105490.0,105480.0,0.22405027]
[1748825696628,0.33721746,105490.0,105480.0,0.20447901]
[1748825696814,0.33721746,105490.0,105480.0,0.21395911]
[1748825697156,0.33721746,105490.0,105480.0,0.22343931]
[1748825697345,0.33721746,105490.0,105480.0,0.22343946]
[1748825697928,0.33721746,105490.0,105480.0,0.20447897]
[1748825698249,0.33721746,105490.0,105480.0,0.22343972]
[1748825698808,0.33721746,105490.0,105480.0,0.21457007]
[1748825698985,0.33721746,105490.0,105480.0,0.22343992]
[1748825699350,0.15710452,105490.0,105480.0,0.22343992]
[1748825699756,0.16658355,105490.0,105480.0,0.22343992]
[1748825699952,0.16658355,105490.0,105480.0,0.23292003]
[1748825700607,0.16658355,105490.0,105480.0,0.23292083]
[1748825701181,0.16658355,105490.0,105480.0,0.24240085]
[1748825701588,0.17606303,105490.0,105480.0,0.22344131]
[1748825701790,0.16658355,105490.0,105480.0,0.23292142]
[1748825702024,0.17606294,105490.0,105480.0,0.23292142]
[1748825702433,0.17606294,105490.0,105480.0,0.22344131]
[1748825702635,0.17606294,105490.0,105480.0,0.23292142]
[1748825703033,0.17606366,105490.0,105480.0,0.21396111]
[1748825703244,0.36565563,105490.0,105480.0,0.21396197]
[1748825703444,0.36565563,105490.0,105480.0,0.22344235]
[1748825703718,0.1760642,105490.0,105480.0,0.23292264]
[1748825704205,0.1760642,105490.0,105480.0,0.23292356]
[1748825704631,0.35617633,105490.0,105480.0,0.22344327]
[1748825704840,0.35617633,105490.0,105480.0,0.23292356]
[1748825705713,0.35617633,105490.0,105480.0,0.23292519]
[1748825705918,0.35617633,105490.0,105480.0,0.2329253]
[1748825706309,0.35617633,105490.0,105480.0,0.22405054]
[1748825706529,0.35617633,105490.0,105480.0,0.2329253]
[1748825706746,0.35617633,105490.0,105480.0,0.22344501]
[1748825706982,0.35617633,105490.0,105480.0,0.2329253]
[1748825707192,0.35617633,105490.0,105480.0,0.23292591]
[1748825707720,0.34669694,105490.0,105480.0,0.21396524]
[1748825707967,0.34669694,105490.0,105480.0,0.01487537]
[1748825708186,0.68669694,105490.0,105480.0,0.01487537]
[1748825708396,0.68669694,105490.0,105480.0,0.01487661]
[1748825708626,0.71516294,105490.0,105480.0,0.01487661]
[1748825708807,0.71416294,105490.0,105480.0,0.01187661]
[1748825709039,0.71416294,105490.0,105480.0,0.00887661]
[1748825709242,0.71416294,105490.0,105480.0,0.01187655]
[1748825709655,0.71416294,105490.0,105480.0,0.0118759]
[1748825710457,0.71416294,105490.0,105480.0,0.01187677]
[1748825710672,0.68569694,105490.0,105480.0,0.01187677]
[1748825710881,0.38658646,105490.0,105480.0,0.21096664]
[1748825711035,0.01468646,105490.0,105480.0,0.27080697]
[1748825711252,0.0191034,105490.0,105480.0,0.27080697]
[1748825711473,0.00962446,105490.0,105480.0,0.27080697]
[1748825711690,0.02858261,105490.0,105480.0,0.27080697]
[1748825712169,0.038062,105490.0,105480.0,0.27080697]
[1748825712516,0.038062,105490.0,105480.0,0.2619302]
[1748825712743,0.00962446,105490.0,105480.0,0.27080795]
[1748825712940,0.01910358,105490.0,105480.0,0.27080799]
[1748825713804,0.01910358,105490.0,105480.0,0.27080804]
[1748825714100,0.01910349,105490.0,105480.0,0.27080804]
[1748825714223,0.01910349,105490.0,105480.0,0.2619302]
[1748825714433,0.00962446,105490.0,105480.0,0.27080974]
[1748825714636,0.00962446,105490.0,105480.0,0.27080973]
[1748825715501,0.00014561,105490.0,105480.0,0.27080973]
[1748825715712,0.00014561,105490.0,105480.0,0.27080979]
[1748825715920,0.00014561,105490.0,105480.0,0.27080978]
[1748825716130,0.00962437,105490.0,105480.0,0.27080978]
[1748825716388,0.00014561,105490.0,105480.0,0.20148898]
[1748825716599,0.2540364,105490.0,105480.0,0.20148898]
[1748825716993,0.2540364,105490.0,105480.0,0.21096945]
[1748825717220,0.2540364,105490.0,105480.0,0.21157025]
[1748825717420,0.2540364,105490.0,105480.0,0.21096976]
[1748825717846,0.2540364,105490.0,105480.0,0.21096974]
[1748825718295,0.2540364,105490.0,105480.0,0.20208987]
[1748825718465,0.2540364,105490.0,105480.0,0.21096975]
[1748825718684,0.24455728,105490.0,105480.0,0.22045013]
[1748825719257,0.21375728,105490.0,105480.0,0.23941053]
[1748825719451,0.21375728,105490.0,105480.0,0.23941062]
[1748825719660,0.01468646,105490.0,105480.0,0.22993036]
[1748825719841,0.04312373,105490.0,105480.0,0.22993036]
[1748825720060,0.05260321,105490.0,105480.0,0.23941067]
[1748825721159,0.05260321,105490.0,105480.0,0.23941031]
[1748825721362,0.05260321,105490.0,105480.0,0.23941035]
[1748825721681,0.04312373,105490.0,105480.0,0.23941027]
[1748825722085,0.05260312,105490.0,105480.0,0.27161027]
[1748825722267,0.05260312,105490.0,105480.0,0.28109028]
[1748825722465,0.05260312,105490.0,105480.0,0.27221031]
[1748825722681,0.05260312,105490.0,105480.0,0.28109026]
[1748825722894,0.06208269,105490.0,105480.0,0.27160988]
[1748825723157,0.06208269,105490.0,105480.0,0.27160995]
[1748825723368,0.05260312,105490.0,105480.0,0.24653002]
[1748825723566,0.05260384,105490.0,105480.0,0.22993002]
[1748825724055,0.04312427,105490.0,105480.0,0.23940998]
[1748825724200,0.05260375,105490.0,105480.0,0.24888991]
[1748825724404,0.06208332,105490.0,105480.0,0.22992996]
[1748825724662,0.24219563,105490.0,105480.0,0.22044985]
[1748825725056,0.24219563,105490.0,105480.0,0.22992996]
[1748825725378,0.24219563,105490.0,105480.0,0.22105]
[1748825725526,0.23271633,105490.0,105480.0,0.22045001]
[1748825725884,0.23271633,105490.0,105480.0,0.22044991]
[1748825726288,0.23271633,105490.0,105480.0,0.22993002]
[1748825726445,0.23271633,105490.0,105480.0,0.22993013]
[1748825726981,0.03364497,105490.0,105480.0,0.22045002]
[1748825727179,0.04312445,105490.0,105480.0,0.21156989]
[1748825727391,0.05260402,105490.0,105480.0,0.22993005]
[1748825727891,0.05260402,105490.0,105480.0,0.22105]
[1748825728118,0.05260402,105490.0,105480.0,0.22993014]
[1748825728636,0.05260402,105490.0,105480.0,0.22993002]
[1748825728841,0.05260402,105490.0,105480.0,0.24888997]
[1748825729269,0.04312445,105490.0,105480.0,0.24888952]
[1748825729438,0.04312373,105490.0,105480.0,0.23940968]
[1748825729643,0.0191034,105490.0,105480.0,0.28088952]
[1748825729855,0.02858261,105490.0,105480.0,0.28088952]
[1748825730601,0.02858261,105490.0,105480.0,0.2720095]
[1748825730809,0.038062,105490.0,105480.0,0.28088952]
[1748825731016,0.02858261,105490.0,105480.0,0.2720095]
[1748825731225,0.02858261,105490.0,105480.0,0.28088952]
[1748825731677,0.038062,105490.0,105480.0,0.28088952]
[1748825732316,0.02858252,105490.0,105480.0,0.28088949]
[1748825732464,0.02858252,105490.0,105480.0,0.28088946]
[1748825732689,0.00014561,105490.0,105480.0,0.2720095]
[1748825732880,0.00962455,105490.0,105480.0,0.2720095]
[1748825734091,0.00014561,105490.0,105480.0,0.28088917]
[1748825734288,0.00962455,105490.0,105480.0,0.28088913]
[1748825734511,0.00962455,105490.0,105480.0,0.2720095]
[1748825734715,0.00962455,105490.0,105480.0,0.28088914]
[1748825734918,0.01910367,105490.0,105480.0,0.28088914]
[1748825735300,0.01910367,105490.0,105480.0,0.2720095]
[1748825735505,0.01910367,105490.0,105480.0,0.28088897]
[1748825735895,0.01910367,105490.0,105480.0,0.28088883]
[1748825736114,0.01910367,105490.0,105480.0,0.28088886]
[1748825736500,0.02858297,105490.0,105480.0,0.28088886]
[1748825736699,0.01910367,105490.0,105480.0,0.28088886]
[1748825736904,0.02858297,105490.0,105480.0,0.28088886]
[1748825737131,0.00962455,105490.0,105480.0,0.28088886]
[1748825737338,0.01910367,105490.0,105480.0,0.28088868]
[1748825737936,0.01910367,105490.0,105480.0,0.2808886]
[1748825738962,0.01910367,105490.0,105480.0,0.2720095]
[1748825739333,0.01910367,105490.0,105480.0,0.28088942]
[1748825739743,0.01910367,105490.0,105480.0,0.2720095]
[1748825739955,0.00014561,105490.0,105480.0,0.28089037]
[1748825740120,0.0191034,105490.0,105480.0,0.28089037]
[1748825740474,0.0191034,105490.0,105480.0,0.28088984]
[1748825741312,0.0191034,105490.0,105480.0,0.28089126]
[1748825741847,0.0191034,105490.0,105480.0,0.2720095]
[1748825742054,0.00962437,105490.0,105480.0,0.28089084]
[1748825742502,0.0191034,105490.0,105480.0,0.28089084]
[1748825742713,0.00962437,105490.0,105480.0,0.28089084]
[1748825742983,0.0191034,105490.0,105480.0,0.28089044]
[1748825743859,0.0191034,105490.0,105480.0,0.28089009]
[1748825744223,0.0191034,105490.0,105480.0,0.2720095]
[1748825744444,0.0191034,105490.0,105480.0,0.28089009]
[1748825745046,0.0191034,105490.0,105480.0,0.28089003]
[1748825745311,0.0191034,105490.0,105480.0,0.28088976]
[1748825745611,0.0191034,105490.0,105480.0,0.2720095]
[1748825745747,0.0191034,105490.0,105480.0,0.28088976]
[1748825745943,0.00962437,105490.0,105480.0,0.28088976]
[1748825746160,0.00962437,105490.0,105480.0,0.28088974]
[1748825746161,0.01910331,105490.0,105480.0,0.28088974]
[1748825746510,0.00962437,105490.0,105480.0,0.28088974]
[1748825746629,0.01910322,105490.0,105480.0,0.28088974]
[1748825746836,0.02858225,105490.0,105480.0,0.28088964]
[1748825747035,0.01910322,105490.0,105480.0,0.28088964]
[1748825747278,0.02858225,105490.0,105480.0,0.28088941]
[1748825747492,0.01910322,105490.0,105480.0,0.28088941]
[1748825747670,0.02858225,105490.0,105480.0,0.28088941]
[1748825748072,0.02858225,105490.0,105480.0,0.28088925]
[1748825748700,0.02858216,105490.0,105480.0,0.28088925]
[1748825749010,0.01910331,105490.0,105480.0,0.37674359]
[1748825749953,0.01910331,105490.0,105480.0,0.37674348]
[1748825751230,0.01910331,105490.0,105480.0,0.37674356]
[1748825751440,0.00962437,105490.0,105480.0,0.37674356]
[1748825751613,0.01910331,105490.0,105480.0,0.37674356]
[1748825751809,0.02858234,105490.0,105480.0,0.3678638]
[1748825752165,0.02858234,105490.0,105480.0,0.37674373]
[1748825753007,0.02858234,105490.0,105480.0,0.34474381]
[1748825753213,0.03806155,105490.0,105480.0,0.34474381]
[1748825753417,0.03806146,105490.0,105480.0,0.3358638]
[1748825753622,0.02858234,105490.0,105480.0,0.3358638]
[1748825753823,0.02858234,105490.0,105480.0,0.3447438]
[1748825754026,0.02858234,105490.0,105480.0,0.3520638]
[1748825754204,0.02858234,105490.0,105480.0,0.36094381]
[1748825755699,0.02858234,105490.0,105480.0,0.36094413]
[1748825756326,0.02858234,105490.0,105480.0,0.3520638]
[1748825756532,0.03806155,105490.0,105480.0,0.37604443]
[1748825756687,0.03806155,105490.0,105480.0,0.37604471]
[1748825757293,0.03806155,105490.0,105480.0,0.37604479]
[1748825757932,0.03806155,105490.0,105480.0,0.3671638]
[1748825758244,0.04739154,105490.0,105480.0,0.34474523]
[1748825759258,0.04739154,105490.0,105480.0,0.34474585]
[1748825759448,0.04739154,105490.0,105480.0,0.3358638]
[1748825759678,0.04739154,105490.0,105480.0,0.34474585]
[1748825759836,0.04739154,105490.0,105480.0,0.34474661]
[1748825760890,0.04739154,105490.0,105480.0,0.34474669]
[1748825761494,0.04739154,105490.0,105480.0,0.34174669]
[1748825762146,0.04739154,105490.0,105480.0,0.34174738]
[1748825763345,0.04739154,105490.0,105480.0,0.34174744]
[1748825764601,0.05687084,105490.0,105480.0,0.34174744]
[1748825765480,0.05687084,105490.0,105480.0,0.34174749]
[1748825765707,0.04739154,105490.0,105480.0,0.34174782]
[1748825766423,0.04739154,105490.0,105480.0,0.34174788]
[1748825766646,0.04739154,105490.0,105480.0,0.34174787]
[1748825767532,0.04739154,105490.0,105480.0,0.35754787]
[1748825767751,0.05687093,105490.0,105480.0,0.34174847]
[1748825768240,0.05687093,105490.0,105480.0,0.34174851]
[1748825768691,0.05687093,105490.0,105480.0,0.34174972]
[1748825769470,0.05687093,105490.0,105480.0,0.3328638]
[1748825769710,0.05687093,105490.0,105480.0,0.34174972]
[1748825769908,0.04739154,105490.0,105480.0,0.34174972]
[1748825770153,0.05687093,105490.0,105480.0,0.34174972]
[1748825770491,0.05687093,105490.0,105480.0,0.3328638]
[1748825770696,0.05687093,105490.0,105480.0,0.34174985]
[1748825771924,0.05687093,105490.0,105480.0,0.3328638]
[1748825772250,0.05687093,105490.0,105480.0,0.34174985]
[1748825773437,0.05687093,105490.0,105480.0,0.34174984]
[1748825773838,0.05687093,105490.0,105480.0,0.3328638]
[1748825774045,0.05687093,105490.0,105480.0,0.34174984]
[1748825775404,0.01895959,105480.0,105470.0,0.24443798]
[1748825775612,0.01895959,105480.0,105470.0,0.31697698]
[1748825775828,0.00947966,105480.0,105470.0,0.34255794]
[1748825776034,0.01895959,105480.0,105470.0,0.35795794]
[1748825776877,0.01895959,105480.0,105470.0,0.35795798]
[1748825777130,0.21802554,105490.0,105480.0,0.20856989]
[1748825777336,0.21802554,105490.0,105480.0,0.21745385]
[1748825778393,0.21802554,105490.0,105480.0,0.21745378]
[1748825778597,0.02843348,105490.0,105480.0,0.22752975]
[1748825778803,0.04739199,105490.0,105480.0,0.23641327]
[1748825779211,0.04739199,105490.0,105480.0,0.23641316]
[1748825779547,0.04739199,105490.0,105480.0,0.22752975]
[1748825779747,0.04739199,105490.0,105480.0,0.23641308]
[1748825781236,0.04739199,105490.0,105480.0,0.22752975]
[1748825781457,0.04739199,105490.0,105480.0,0.23641289]
[1748825781661,0.04739199,105490.0,105480.0,0.2364128]
[1748825782359,0.04739199,105490.0,105480.0,0.23641268]
[1748825782571,0.04739199,105490.0,105480.0,0.23641267]
[1748825782766,0.04739199,105490.0,105480.0,0.23944591]
[1748825782984,0.04739199,105490.0,105480.0,0.23944588]
[1748825783733,0.04739199,105490.0,105480.0,0.2394459]
[1748825784351,0.04739199,105490.0,105480.0,0.23056299]
[1748825784550,0.04739199,105490.0,105480.0,0.23944588]
[1748825785402,0.04739199,105490.0,105480.0,0.23944592]
[1748825786233,0.04739199,105490.0,105480.0,0.23056298]
[1748825786448,0.04739199,105490.0,105480.0,0.23944589]
[1748825786772,0.04739199,105490.0,105480.0,0.23944593]
[1748825787166,0.04739199,105490.0,105480.0,0.23056298]
[1748825787496,0.04739199,105490.0,105480.0,0.23944596]
[1748825787962,0.04739199,105490.0,105480.0,0.23056298]
[1748825788165,0.04739199,105490.0,105480.0,0.23944596]
[1748825788370,0.0473919,105490.0,105480.0,0.23944596]
[1748825788578,0.05687129,105490.0,105480.0,0.23944596]
[1748825789404,0.07217129,105490.0,105480.0,0.23056298]
[1748825789620,0.07217129,105490.0,105480.0,0.23944601]
[1748825790845,0.07217129,105490.0,105480.0,0.23944607]
[1748825790980,0.07217129,105490.0,105480.0,0.23056298]
[1748825791407,0.07217129,105490.0,105480.0,0.23944612]
[1748825792289,0.07217129,105490.0,105480.0,0.23944621]
[1748825793362,0.07217129,105490.0,105480.0,0.23641302]
[1748825793564,0.07217129,105490.0,105480.0,0.23944625]
[1748825794380,0.07217129,105490.0,105480.0,0.23056298]
[1748825794789,0.0473919,105490.0,105480.0,0.23944631]
[1748825795493,0.0473919,105490.0,105480.0,0.23944642]
[1748825796191,0.0473919,105490.0,105480.0,0.2394465]
[1748825796727,0.0473919,105490.0,105480.0,0.23944656]
[1748825796928,0.0379126,105490.0,105480.0,0.23944656]
[1748825797083,0.04739199,105490.0,105480.0,0.23944656]
[1748825797265,0.0473919,105490.0,105480.0,0.23944656]
[1748825798024,0.0473919,105490.0,105480.0,0.23944667]
[1748825798518,0.0473919,105490.0,105480.0,0.23056298]
[1748825798744,0.0473919,105490.0,105480.0,0.23944686]